[Event "*** Titled Tuesday Blitz"]
[Site "Chess.com"]
[Date "2020.11.24"]
[Round "6"]
[White "BillCoe"]
[Black "Akhayan"]
[Result "1-0"]
[WhiteElo "2079"]
[BlackElo "2271"]
[TimeControl "180+1"]
[EndTime "11:23:51 PST"]
[Termination "BillCoe won by resignation"]

1. e4 {[%clk 0:03:00.9]} 1... e6 {[%clk 0:02:59.3]} 2. d4 {[%clk 0:02:59.2]}
2... d5 {[%clk 0:02:59.3]} 3. Nd2 {[%clk 0:02:59.6]} 3... c5 {[%clk 0:02:57.9]}
4. Ngf3 {[%clk 0:02:58.9]} 4... cxd4 {[%clk 0:02:56.8]} 5. Nxd4 {[%clk
0:02:58.3]} 5... Nc6 {[%clk 0:02:55.6]} 6. Bb5 {[%clk 0:02:56.9]} 6... Bd7
{[%clk 0:02:55.6]} 7. Nxc6 {[%clk 0:02:49.1]} 7... Bxc6 {[%clk 0:02:55.1]} 8.
Bxc6+ {[%clk 0:02:48.8]} 8... bxc6 {[%clk 0:02:55.2]} 9. exd5 {[%clk 0:02:48.7]}
9... cxd5 {[%clk 0:02:52.1]} 10. O-O {[%clk 0:02:49.1]} 10... Nf6 {[%clk
0:02:50.4]} 11. Nf3 {[%clk 0:02:47.9]} 11... Be7 {[%clk 0:02:47.5]} 12. Bf4
{[%clk 0:02:43.6]} 12... O-O {[%clk 0:02:46.9]} 13. Rc1 {[%clk 0:02:37.5]} 13...
Rc8 {[%clk 0:02:39.2]} 14. b3 {[%clk 0:02:32.2]} 14... Ne4 {[%clk 0:02:37.8]}
15. c4 {[%clk 0:02:25.8]} 15... dxc4 {[%clk 0:02:23.9]} 16. Rxc4 {[%clk
0:02:23.3]} 16... Rxc4 {[%clk 0:02:22.1]} 17. bxc4 {[%clk 0:02:22.5]} 17... Qa5
{[%clk 0:02:03.5]} 18. Qc2 {[%clk 0:02:15.1]} 18... Nf6 {[%clk 0:01:47.2]} 19.
Nd4 {[%clk 0:02:04.5]} 19... Rc8 {[%clk 0:01:41.9]} 20. Rc1 {[%clk 0:01:51.4]}
20... Qa6 {[%clk 0:01:19.2]} 21. Nb3 {[%clk 0:01:46.1]} 21... h6 {[%clk
0:01:13.6]} 22. c5 {[%clk 0:01:41.6]} 22... Nd5 {[%clk 0:01:11.5]} 23. Be5
{[%clk 0:01:11.5]} 23... Qc6 {[%clk 0:01:03.5]} 24. g3 {[%clk 0:01:08.6]} 24...
Bf6 {[%clk 0:01:01]} 25. Bxf6 {[%clk 0:01:07]} 25... Nxf6 {[%clk 0:01:00.9]} 26.
Nd4 {[%clk 0:01:06]} 26... Qd5 {[%clk 0:00:58.8]} 27. Qc4 {[%clk 0:01:06.2]}
27... Qe4 {[%clk 0:00:55.7]} 28. Nb5 {[%clk 0:01:02.2]} 28... Qxc4 {[%clk
0:00:46.1]} 29. Rxc4 {[%clk 0:01:01.3]} 29... a6 {[%clk 0:00:45.7]} 30. Nd6
{[%clk 0:00:56.1]} 30... Rc6 {[%clk 0:00:45.5]} 31. Nb7 {[%clk 0:00:52.6]} 31...
Nd7 {[%clk 0:00:43.5]} 32. Kf1 {[%clk 0:00:48.9]} 32... Rc7 {[%clk 0:00:40.6]}
33. c6 {[%clk 0:00:46.8]} 33... Ne5 {[%clk 0:00:39.8]} 34. Rc5 {[%clk
0:00:21.5]} 34... f6 {[%clk 0:00:39.2]} 35. Na5 {[%clk 0:00:20]} 35... Kf7
{[%clk 0:00:38.7]} 36. Ke2 {[%clk 0:00:20.2]} 36... Ke7 {[%clk 0:00:38.6]} 37.
f4 {[%clk 0:00:19.8]} 37... Nd7 {[%clk 0:00:31.9]} 38. Rc3 {[%clk 0:00:16]}
38... Nb8 {[%clk 0:00:31.3]} 39. Kd3 {[%clk 0:00:14.5]} 39... Kd6 {[%clk
0:00:31.1]} 40. Nb7+ {[%clk 0:00:12.9]} 40... Ke7 {[%clk 0:00:27.9]} 41. Na5
{[%clk 0:00:12.3]} 41... g5 {[%clk 0:00:27.2]} 42. fxg5 {[%clk 0:00:11.5]} 42...
hxg5 {[%clk 0:00:27.1]} 43. Kd4 {[%clk 0:00:11.4]} 43... Kd6 {[%clk 0:00:26.5]}
44. Nb7+ {[%clk 0:00:11.2]} 44... Ke7 {[%clk 0:00:26.5]} 45. Na5 {[%clk
0:00:11.1]} 45... Rc8 {[%clk 0:00:23.8]} 46. Kc5 {[%clk 0:00:09.9]} 46... f5
{[%clk 0:00:21.9]} 47. Kb6 {[%clk 0:00:09.4]} 47... Nd7+ {[%clk 0:00:21.7]} 48.
Kb7 {[%clk 0:00:07.6]} 48... Rb8+ {[%clk 0:00:20]} 49. Kc7 {[%clk 0:00:07.2]}
49... Ra8 {[%clk 0:00:15.4]} 50. cxd7 {[%clk 0:00:05.8]} 50... Ra7+ {[%clk
0:00:15.4]} 51. Nb7 {[%clk 0:00:06.3]} 51... Kf6 {[%clk 0:00:15.1]} 52. d8=Q+
{[%clk 0:00:06]} 52... Ke5 {[%clk 0:00:15]} 53. Qd6+ {[%clk 0:00:04.6]} 53...
Ke4 {[%clk 0:00:15]} 54. Qd3+ {[%clk 0:00:03.5]} 54... Ke5 {[%clk 0:00:14.6]}
55. Rc5+ {[%clk 0:00:03.8]} 55... Kf6 {[%clk 0:00:13.6]} 56. Qd8+ {[%clk
0:00:04.3]} 56... Kg6 {[%clk 0:00:13.2]} 57. Qe7 {[%clk 0:00:04.3]} 57... a5
{[%clk 0:00:11.1]} 58. Qxe6+ {[%clk 0:00:04.5]} 58... Kh5 {[%clk 0:00:11]} 59.
Rxf5 {[%clk 0:00:04.4]} 59... a4 {[%clk 0:00:10.2]} 60. Qf6 {[%clk 0:00:04.5]}
60... Rxb7+ {[%clk 0:00:08.5]} 61. Kxb7 {[%clk 0:00:05.4]} 1-0

[Event "*** Titled Tuesday Blitz"]
[Site "Chess.com"]
[Date "2020.11.24"]
[Round "6"]
[White "Kaua18"]
[Black "pastouche06"]
[Result "1-0"]
[WhiteElo "2359"]
[BlackElo "2510"]
[TimeControl "180+1"]
[EndTime "11:23:54 PST"]
[Termination "Kaua18 won by resignation"]

1. e4 {[%clk 0:03:00.6]} 1... c6 {[%clk 0:02:59.6]} 2. c4 {[%clk 0:02:59.2]}
2... d5 {[%clk 0:02:59.6]} 3. exd5 {[%clk 0:02:56.7]} 3... Nf6 {[%clk
0:02:59.6]} 4. d4 {[%clk 0:02:44.9]} 4... cxd5 {[%clk 0:02:58.4]} 5. Nc3 {[%clk
0:02:44.1]} 5... Nc6 {[%clk 0:02:58.4]} 6. Bg5 {[%clk 0:02:41.3]} 6... Ne4
{[%clk 0:02:55.6]} 7. Be3 {[%clk 0:02:23.8]} 7... Nxc3 {[%clk 0:02:48.2]} 8.
bxc3 {[%clk 0:02:24.7]} 8... g6 {[%clk 0:02:47.4]} 9. Nf3 {[%clk 0:02:21.9]}
9... Bg7 {[%clk 0:02:46]} 10. cxd5 {[%clk 0:02:20.5]} 10... Qxd5 {[%clk
0:02:45.5]} 11. Be2 {[%clk 0:02:17.3]} 11... Qa5 {[%clk 0:02:41.4]} 12. Qd2
{[%clk 0:02:15.7]} 12... O-O {[%clk 0:02:36.5]} 13. O-O {[%clk 0:02:15.9]} 13...
Rd8 {[%clk 0:02:35.6]} 14. Rfd1 {[%clk 0:02:15.2]} 14... b6 {[%clk 0:02:28.8]}
15. h4 {[%clk 0:02:08.5]} 15... Ba6 {[%clk 0:02:20.8]} 16. c4 {[%clk 0:02:03.7]}
16... Qxd2 {[%clk 0:02:13.6]} 17. Rxd2 {[%clk 0:02:04.6]} 17... e5 {[%clk
0:02:01.1]} 18. d5 {[%clk 0:01:49]} 18... Na5 {[%clk 0:02:00.5]} 19. Rc1 {[%clk
0:01:47.9]} 19... Rac8 {[%clk 0:01:53.5]} 20. Rdc2 {[%clk 0:01:36.4]} 20... f6
{[%clk 0:01:39]} 21. Nd2 {[%clk 0:01:29.3]} 21... Bf8 {[%clk 0:01:23.9]} 22. g4
{[%clk 0:01:16.5]} 22... Nb7 {[%clk 0:01:15.9]} 23. Ne4 {[%clk 0:00:58.6]} 23...
Kf7 {[%clk 0:01:10.5]} 24. g5 {[%clk 0:00:53.4]} 24... f5 {[%clk 0:01:10.1]} 25.
Nf6 {[%clk 0:00:53.7]} 25... h5 {[%clk 0:00:59.7]} 26. f4 {[%clk 0:00:45.9]}
26... exf4 {[%clk 0:00:53.1]} 27. Bxf4 {[%clk 0:00:46.8]} 27... Bd6 {[%clk
0:00:53.6]} 28. Be3 {[%clk 0:00:27.8]} 28... Bc5 {[%clk 0:00:36.4]} 29. Kf2
{[%clk 0:00:18.1]} 29... Nd6 {[%clk 0:00:35.7]} 30. Bxc5 {[%clk 0:00:17.5]}
30... Rxc5 {[%clk 0:00:36.6]} 31. Ke3 {[%clk 0:00:15.2]} 31... Rc7 {[%clk
0:00:27.5]} 32. Kd4 {[%clk 0:00:15.1]} 32... Re7 {[%clk 0:00:21.8]} 33. Bd3
{[%clk 0:00:10.5]} 33... Nb7 {[%clk 0:00:19.3]} 34. Re2 {[%clk 0:00:06.1]} 34...
Rxe2 {[%clk 0:00:18.5]} 35. Bxe2 {[%clk 0:00:07]} 35... Rc8 {[%clk 0:00:17.9]}
36. Nd7 {[%clk 0:00:05.3]} 36... Rc7 {[%clk 0:00:16.5]} 37. Ne5+ {[%clk
0:00:05.7]} 37... Kg7 {[%clk 0:00:17]} 38. Re1 {[%clk 0:00:03.9]} 38... Nd6
{[%clk 0:00:17.2]} 39. Rc1 {[%clk 0:00:03.9]} 39... Re7 {[%clk 0:00:14.5]} 40.
Bd3 {[%clk 0:00:04.1]} 40... Rc7 {[%clk 0:00:12.6]} 41. Nc6 {[%clk 0:00:03.5]}
41... Bc8 {[%clk 0:00:09.3]} 42. Re1 {[%clk 0:00:03.2]} 42... Kf7 {[%clk
0:00:08.5]} 43. a4 {[%clk 0:00:02.3]} 43... Bd7 {[%clk 0:00:08.3]} 44. Re7+
{[%clk 0:00:02.3]} 44... Kf8 {[%clk 0:00:07.9]} 45. Rh7 {[%clk 0:00:02.7]} 45...
f4 {[%clk 0:00:06.9]} 46. Ne5 {[%clk 0:00:03.1]} 46... Ke8 {[%clk 0:00:07.2]}
47. Bxg6+ {[%clk 0:00:03]} 47... Kd8 {[%clk 0:00:08.1]} 48. Nxd7 {[%clk
0:00:02.9]} 48... Rxd7 {[%clk 0:00:09]} 49. Rxd7+ {[%clk 0:00:03.1]} 49... Kxd7
{[%clk 0:00:09.9]} 50. Bd3 {[%clk 0:00:04]} 50... Ke7 {[%clk 0:00:07.6]} 51. Ke5
{[%clk 0:00:04.4]} 51... f3 {[%clk 0:00:07]} 52. Kf4 {[%clk 0:00:04.8]} 52... f2
{[%clk 0:00:07.2]} 53. Kf3 {[%clk 0:00:05]} 53... Nf5 {[%clk 0:00:06.3]} 54.
Kxf2 {[%clk 0:00:05.4]} 54... Nxh4 {[%clk 0:00:06.7]} 55. Ke3 {[%clk 0:00:05.5]}
55... Kd6 {[%clk 0:00:06.1]} 56. Kf4 {[%clk 0:00:05.7]} 56... Ng2+ {[%clk
0:00:06.3]} 57. Kf5 {[%clk 0:00:05.6]} 57... h4 {[%clk 0:00:06.1]} 58. Be4
{[%clk 0:00:05.7]} 58... h3 {[%clk 0:00:06.7]} 59. g6 {[%clk 0:00:05.1]} 59...
Nh4+ {[%clk 0:00:06.9]} 60. Kf6 {[%clk 0:00:05.1]} 60... h2 {[%clk 0:00:05.9]}
61. g7 {[%clk 0:00:05.3]} 1-0

[Event "*** Titled Tuesday Blitz"]
[Site "Chess.com"]
[Date "2020.11.24"]
[Round "6"]
[White "Gogolev_Artemy"]
[Black "elohunter1999"]
[Result "1-0"]
[WhiteElo "2475"]
[BlackElo "2570"]
[TimeControl "180+1"]
[EndTime "11:24:00 PST"]
[Termination "Gogolev_Artemy won on time"]

1. Nf3 {[%clk 0:02:53.1]} 1... d5 {[%clk 0:02:56.7]} 2. c4 {[%clk 0:02:50.1]}
2... d4 {[%clk 0:02:56.4]} 3. e3 {[%clk 0:02:48.3]} 3... Nc6 {[%clk 0:02:56.2]}
4. exd4 {[%clk 0:02:42.1]} 4... Nxd4 {[%clk 0:02:56.1]} 5. Nxd4 {[%clk
0:02:40.6]} 5... Qxd4 {[%clk 0:02:57]} 6. d3 {[%clk 0:02:40.3]} 6... Nh6 {[%clk
0:02:47.7]} 7. Nc3 {[%clk 0:02:28.4]} 7... c6 {[%clk 0:02:47.6]} 8. Be2 {[%clk
0:02:21.5]} 8... g6 {[%clk 0:02:46.2]} 9. Be3 {[%clk 0:02:18.6]} 9... Qd8 {[%clk
0:02:45.2]} 10. g4 {[%clk 0:02:17.2]} 10... Bg7 {[%clk 0:02:33.6]} 11. h3 {[%clk
0:02:10.4]} 11... f5 {[%clk 0:02:01.8]} 12. Qd2 {[%clk 0:01:47.8]} 12... Nf7
{[%clk 0:02:00.6]} 13. d4 {[%clk 0:01:45.8]} 13... e5 {[%clk 0:01:56.9]} 14. d5
{[%clk 0:01:25.2]} 14... O-O {[%clk 0:01:40.1]} 15. gxf5 {[%clk 0:01:19.4]}
15... Bxf5 {[%clk 0:01:35.1]} 16. dxc6 {[%clk 0:01:01.1]} 16... bxc6 {[%clk
0:01:36]} 17. Qxd8 {[%clk 0:00:59.7]} 17... Nxd8 {[%clk 0:01:26.1]} 18. O-O-O
{[%clk 0:00:50.6]} 18... Ne6 {[%clk 0:01:24.9]} 19. Rd6 {[%clk 0:00:46.7]} 19...
Nd4 {[%clk 0:01:23.5]} 20. Bg4 {[%clk 0:00:41.2]} 20... Rfd8 {[%clk 0:01:11.5]}
21. Rxd8+ {[%clk 0:00:38.8]} 21... Rxd8 {[%clk 0:01:12.4]} 22. Rd1 {[%clk
0:00:35.8]} 22... h5 {[%clk 0:01:00.7]} 23. Bxf5 {[%clk 0:00:33.9]} 23... gxf5
{[%clk 0:01:01.6]} 24. Bxd4 {[%clk 0:00:26.4]} 24... exd4 {[%clk 0:01:01.7]} 25.
Ne2 {[%clk 0:00:26.6]} 25... c5 {[%clk 0:01:00.7]} 26. Kd2 {[%clk 0:00:25.5]}
26... h4 {[%clk 0:00:29.7]} 27. Kd3 {[%clk 0:00:24.2]} 27... Bh6 {[%clk
0:00:29.1]} 28. b3 {[%clk 0:00:19]} 28... Kf7 {[%clk 0:00:29]} 29. Rg1 {[%clk
0:00:18.3]} 29... Re8 {[%clk 0:00:25.3]} 30. a3 {[%clk 0:00:16.5]} 30... a5
{[%clk 0:00:24.9]} 31. Rb1 {[%clk 0:00:15.5]} 31... Rb8 {[%clk 0:00:20.8]} 32.
Ng1 {[%clk 0:00:12.9]} 32... Rg8 {[%clk 0:00:19.3]} 33. Nf3 {[%clk 0:00:12.5]}
33... Rg2 {[%clk 0:00:18.8]} 34. Ke2 {[%clk 0:00:10.7]} 34... d3+ {[%clk
0:00:19]} 35. Kf1 {[%clk 0:00:10.5]} 35... Rg8 {[%clk 0:00:16.9]} 36. Ne5+
{[%clk 0:00:10.6]} 36... Kf6 {[%clk 0:00:15.9]} 37. Nxd3 {[%clk 0:00:11.5]}
37... Rc8 {[%clk 0:00:13.5]} 38. Ke2 {[%clk 0:00:10.8]} 38... Bf8 {[%clk
0:00:12.4]} 39. Nf4 {[%clk 0:00:10.3]} 39... Bd6 {[%clk 0:00:11.5]} 40. Nd5+
{[%clk 0:00:10.3]} 40... Kf7 {[%clk 0:00:11.9]} 41. Kf3 {[%clk 0:00:10.1]} 41...
Rg8 {[%clk 0:00:11.1]} 42. Rd1 {[%clk 0:00:09.5]} 42... Rb8 {[%clk 0:00:09.7]}
43. Rd3 {[%clk 0:00:09.2]} 43... Be5 {[%clk 0:00:09.7]} 44. Ne3 {[%clk
0:00:08.8]} 44... Ke6 {[%clk 0:00:08.1]} 45. Nd5 {[%clk 0:00:08.5]} 45... Bb2
{[%clk 0:00:07.5]} 46. a4 {[%clk 0:00:07.8]} 46... Bd4 {[%clk 0:00:07.6]} 47.
Nf4+ {[%clk 0:00:07.8]} 47... Kd6 {[%clk 0:00:07.1]} 48. Ng6 {[%clk 0:00:07.9]}
48... Re8 {[%clk 0:00:05.6]} 49. Nxh4 {[%clk 0:00:07.5]} 49... Ke6 {[%clk
0:00:05.3]} 50. Ng6 {[%clk 0:00:06.9]} 50... Kf6 {[%clk 0:00:05.7]} 51. Nf4
{[%clk 0:00:07.2]} 51... Re1 {[%clk 0:00:06.2]} 52. Ne2 {[%clk 0:00:07.1]} 52...
Be5 {[%clk 0:00:04.4]} 53. Rd5 {[%clk 0:00:06.7]} 53... Rb1 {[%clk 0:00:04.2]}
54. Rd3 {[%clk 0:00:06.5]} 54... Rb2 {[%clk 0:00:02.3]} 55. Nf4 {[%clk 0:00:06]}
55... Bd4 {[%clk 0:00:02.2]} 56. Ne2 {[%clk 0:00:05.5]} 56... Be5 {[%clk
0:00:02.2]} 57. h4 {[%clk 0:00:05.4]} 57... Kg6 {[%clk 0:00:01.6]} 58. Ng3
{[%clk 0:00:03.8]} 58... Bd4 {[%clk 0:00:01.5]} 59. h5+ {[%clk 0:00:03.8]} 59...
Kg5 {[%clk 0:00:01.6]} 60. Ne2 {[%clk 0:00:03.6]} 60... Be5 {[%clk 0:00:01.8]}
61. h6 {[%clk 0:00:03.1]} 61... Kxh6 {[%clk 0:00:01.8]} 62. Rd5 {[%clk
0:00:03.3]} 62... Bd4 {[%clk 0:00:02.2]} 63. Rxf5 {[%clk 0:00:02.4]} 63... Rxb3+
{[%clk 0:00:02.4]} 64. Ke4 {[%clk 0:00:02.5]} 1-0

[Event "*** Titled Tuesday Blitz"]
[Site "Chess.com"]
[Date "2020.11.24"]
[Round "6"]
[White "ChessicallyInclined"]
[Black "XDPS"]
[Result "1-0"]
[WhiteElo "2554"]
[BlackElo "2696"]
[TimeControl "180+1"]
[EndTime "11:24:04 PST"]
[Termination "ChessicallyInclined won on time"]

1. d4 {[%clk 0:03:00.9]} 1... d5 {[%clk 0:02:59.7]} 2. c4 {[%clk 0:03:01.2]}
2... e6 {[%clk 0:02:59.2]} 3. Nc3 {[%clk 0:03:01.5]} 3... Nf6 {[%clk 0:02:58.7]}
4. cxd5 {[%clk 0:03:01.8]} 4... exd5 {[%clk 0:02:59.6]} 5. Bg5 {[%clk
0:03:01.6]} 5... c6 {[%clk 0:03:00.2]} 6. Qc2 {[%clk 0:03:01.8]} 6... h6 {[%clk
0:03:00.3]} 7. Bh4 {[%clk 0:03:01.5]} 7... Bd6 {[%clk 0:03:00.4]} 8. e3 {[%clk
0:02:58.6]} 8... O-O {[%clk 0:03:00.6]} 9. Bd3 {[%clk 0:02:58.8]} 9... Re8
{[%clk 0:02:59.3]} 10. Nge2 {[%clk 0:02:59]} 10... a5 {[%clk 0:02:58.4]} 11. Bg3
{[%clk 0:02:58.7]} 11... Na6 {[%clk 0:02:58.1]} 12. a3 {[%clk 0:02:57.7]} 12...
Nc7 {[%clk 0:02:58.1]} 13. O-O {[%clk 0:02:56.8]} 13... Ne6 {[%clk 0:02:52.2]}
14. Rab1 {[%clk 0:02:46.3]} 14... Ng5 {[%clk 0:02:49.4]} 15. Be5 {[%clk
0:02:19.9]} 15... Ng4 {[%clk 0:02:23.5]} 16. Bf4 {[%clk 0:01:36.8]} 16... Bxf4
{[%clk 0:01:37.7]} 17. exf4 {[%clk 0:01:36.7]} 17... Ne6 {[%clk 0:01:30.9]} 18.
h3 {[%clk 0:01:31.5]} 18... Nf6 {[%clk 0:01:30.8]} 19. f5 {[%clk 0:01:23]} 19...
Nf8 {[%clk 0:01:30.7]} 20. Ng3 {[%clk 0:01:18.5]} 20... Qd6 {[%clk 0:01:29.7]}
21. Qd2 {[%clk 0:01:16.9]} 21... Bd7 {[%clk 0:01:28.4]} 22. Na4 {[%clk 0:01:11]}
22... Qc7 {[%clk 0:01:16.2]} 23. Nc5 {[%clk 0:01:05]} 23... Bc8 {[%clk
0:01:16.2]} 24. Rfe1 {[%clk 0:00:52.3]} 24... Rxe1+ {[%clk 0:01:11.2]} 25. Rxe1
{[%clk 0:00:53.2]} 25... b6 {[%clk 0:01:11.5]} 26. Na4 {[%clk 0:00:53]} 26...
Bd7 {[%clk 0:01:11.1]} 27. Nc3 {[%clk 0:00:51.2]} 27... Qd6 {[%clk 0:01:11]} 28.
Na4 {[%clk 0:00:46.7]} 28... Rb8 {[%clk 0:01:07.5]} 29. b4 {[%clk 0:00:42.9]}
29... axb4 {[%clk 0:00:57.6]} 30. Qxb4 {[%clk 0:00:39.3]} 30... Qc7 {[%clk
0:00:42.4]} 31. Re7 {[%clk 0:00:29.1]} 31... Qd8 {[%clk 0:00:33.4]} 32. Qd6
{[%clk 0:00:25.4]} 32... Ra8 {[%clk 0:00:33.8]} 33. Bc2 {[%clk 0:00:18.8]} 33...
Ra5 {[%clk 0:00:19.5]} 34. Nc3 {[%clk 0:00:17.4]} 34... Ra8 {[%clk 0:00:12.1]}
35. a4 {[%clk 0:00:16.7]} 35... Qb8 {[%clk 0:00:09.4]} 36. Qe5 {[%clk
0:00:14.4]} 36... Qc8 {[%clk 0:00:04.1]} 37. Nge2 {[%clk 0:00:11.9]} 37... Rb8
{[%clk 0:00:02.4]} 38. g4 {[%clk 0:00:10]} 38... Qd8 {[%clk 0:00:02.7]} 39. Ng3
{[%clk 0:00:09.3]} 39... Rc8 {[%clk 0:00:02.9]} 40. Bd1 {[%clk 0:00:06.3]} 40...
c5 {[%clk 0:00:03.3]} 41. Bf3 {[%clk 0:00:06]} 41... Bc6 {[%clk 0:00:02.9]} 42.
Nb5 {[%clk 0:00:05.4]} 42... Bxb5 {[%clk 0:00:02.9]} 43. axb5 {[%clk 0:00:06.3]}
43... cxd4 {[%clk 0:00:03.5]} 44. Rb7 {[%clk 0:00:06.3]} 44... d3 {[%clk
0:00:02.9]} 45. h4 {[%clk 0:00:05.9]} 45... d2 {[%clk 0:00:01.8]} 46. Qd4 {[%clk
0:00:05.8]} 46... Rc1+ {[%clk 0:00:02.5]} 47. Kg2 {[%clk 0:00:06.1]} 47... Qd6
{[%clk 0:00:02.5]} 48. Qxd2 {[%clk 0:00:05.9]} 48... Rc5 {[%clk 0:00:02.8]} 49.
g5 {[%clk 0:00:05.6]} 49... hxg5 {[%clk 0:00:03.6]} 50. hxg5 {[%clk 0:00:06.5]}
50... N6d7 {[%clk 0:00:03.6]} 51. Qd4 {[%clk 0:00:06]} 51... Rc4 {[%clk
0:00:03.9]} 52. Qb2 {[%clk 0:00:05.8]} 52... Rc5 {[%clk 0:00:04.2]} 53. Nh5
{[%clk 0:00:05.6]} 53... d4 {[%clk 0:00:04.3]} 54. Qe2 {[%clk 0:00:05.1]} 54...
g6 {[%clk 0:00:04.6]} 55. fxg6 {[%clk 0:00:05.1]} 55... fxg6 {[%clk 0:00:05.5]}
56. Ng3 {[%clk 0:00:05.5]} 56... Kg7 {[%clk 0:00:05.3]} 57. Ne4 {[%clk
0:00:05.7]} 57... Qe5 {[%clk 0:00:05.7]} 58. Qd3 {[%clk 0:00:05.7]} 58... Qf4
{[%clk 0:00:05.6]} 59. Nxc5 {[%clk 0:00:05.7]} 59... Qxg5+ {[%clk 0:00:06.1]}
60. Kf1 {[%clk 0:00:05.6]} 60... Qxc5 {[%clk 0:00:07]} 61. Bc6 {[%clk
0:00:05.8]} 61... Qd6 {[%clk 0:00:06.9]} 62. Bxd7 {[%clk 0:00:04.9]} 62... Nxd7
{[%clk 0:00:07.8]} 63. Qh3 {[%clk 0:00:05.4]} 63... Kf6 {[%clk 0:00:07.7]} 64.
Qxd7 {[%clk 0:00:06]} 64... Qe5 {[%clk 0:00:07.3]} 65. Rxb6+ {[%clk 0:00:05.8]}
65... Kg5 {[%clk 0:00:07]} 66. Rd6 {[%clk 0:00:06.2]} 66... Qf4 {[%clk
0:00:06.7]} 67. Rd5+ {[%clk 0:00:06.4]} 67... Kh6 {[%clk 0:00:07.2]} 68. Rxd4
{[%clk 0:00:06.7]} 68... Qc1+ {[%clk 0:00:07.1]} 69. Kg2 {[%clk 0:00:07.2]}
69... Qg5+ {[%clk 0:00:07.7]} 70. Qg4 {[%clk 0:00:07.8]} 70... Qc5 {[%clk
0:00:07.7]} 71. Qh4+ {[%clk 0:00:08]} 71... Kg7 {[%clk 0:00:08.2]} 72. Rd7+
{[%clk 0:00:08.3]} 72... Kg8 {[%clk 0:00:08.2]} 73. Qh7+ {[%clk 0:00:08.6]} 1-0

[Event "*** Titled Tuesday Blitz"]
[Site "Chess.com"]
[Date "2020.11.24"]
[Round "6"]
[White "ARTHURMOTIVATOR"]
[Black "GMaka"]
[Result "0-1"]
[WhiteElo "2285"]
[BlackElo "2425"]
[TimeControl "180+1"]
[EndTime "11:24:07 PST"]
[Termination "GMaka won by resignation"]

1. e4 {[%clk 0:03:00.9]} 1... c6 {[%clk 0:02:59.9]} 2. d4 {[%clk 0:02:55.5]}
2... d5 {[%clk 0:03:00.8]} 3. exd5 {[%clk 0:02:52.9]} 3... cxd5 {[%clk
0:03:00.5]} 4. Bd3 {[%clk 0:02:53.8]} 4... Nc6 {[%clk 0:02:59.6]} 5. c3 {[%clk
0:02:52.6]} 5... g6 {[%clk 0:02:59.5]} 6. h3 {[%clk 0:02:51.9]} 6... Bg7 {[%clk
0:02:59.9]} 7. Nf3 {[%clk 0:02:52.1]} 7... Nh6 {[%clk 0:02:59.9]} 8. O-O {[%clk
0:02:51.7]} 8... Bf5 {[%clk 0:02:55]} 9. Re1 {[%clk 0:02:51.5]} 9... Bxd3 {[%clk
0:02:54.4]} 10. Qxd3 {[%clk 0:02:50.7]} 10... Nf5 {[%clk 0:02:49.1]} 11. Bf4
{[%clk 0:02:49.7]} 11... O-O {[%clk 0:02:48.5]} 12. Nbd2 {[%clk 0:02:47.5]}
12... e6 {[%clk 0:02:44.9]} 13. b4 {[%clk 0:02:44.4]} 13... a6 {[%clk
0:02:42.2]} 14. a4 {[%clk 0:02:43.2]} 14... Rc8 {[%clk 0:02:42.1]} 15. a5 {[%clk
0:02:38.8]} 15... Nd6 {[%clk 0:02:35.6]} 16. Bxd6 {[%clk 0:02:33.6]} 16... Qxd6
{[%clk 0:02:36.5]} 17. Nb3 {[%clk 0:02:33.7]} 17... Rc7 {[%clk 0:02:27.5]} 18.
Nc5 {[%clk 0:02:32.2]} 18... Re7 {[%clk 0:02:27.9]} 19. Rad1 {[%clk 0:02:02.4]}
19... Rfe8 {[%clk 0:02:26.9]} 20. b5 {[%clk 0:01:49.2]} 20... Nxa5 {[%clk
0:02:21.7]} 21. bxa6 {[%clk 0:01:48.3]} 21... bxa6 {[%clk 0:02:22.6]} 22. Qxa6
{[%clk 0:01:43]} 22... Qxa6 {[%clk 0:02:20.9]} 23. Nxa6 {[%clk 0:01:43.9]} 23...
Rb7 {[%clk 0:02:13.2]} 24. Nc5 {[%clk 0:01:42]} 24... Rb2 {[%clk 0:02:09.2]} 25.
Rd2 {[%clk 0:01:34.9]} 25... Reb8 {[%clk 0:01:57.5]} 26. Rxb2 {[%clk 0:01:30.9]}
26... Rxb2 {[%clk 0:01:58.4]} 27. Ra1 {[%clk 0:01:30.6]} 27... Rb5 {[%clk
0:01:58.7]} 28. Nd2 {[%clk 0:01:21.3]} 28... Bh6 {[%clk 0:01:50.3]} 29. Ra2
{[%clk 0:01:10.8]} 29... Kg7 {[%clk 0:00:56.2]} 30. g3 {[%clk 0:01:09.7]} 30...
Bxd2 {[%clk 0:00:51.4]} 31. Rxd2 {[%clk 0:01:07.8]} 31... Rb1+ {[%clk
0:00:51.9]} 32. Kg2 {[%clk 0:01:07.1]} 32... Rc1 {[%clk 0:00:50.5]} 33. Ra2
{[%clk 0:01:05.3]} 33... Nc4 {[%clk 0:00:48.5]} 34. Ra7 {[%clk 0:01:04.9]} 34...
Re1 {[%clk 0:00:39]} 35. f4 {[%clk 0:00:55.8]} 35... h5 {[%clk 0:00:22.7]} 36.
g4 {[%clk 0:00:55.1]} 36... Re3 {[%clk 0:00:19.3]} 37. g5 {[%clk 0:00:51.2]}
37... Nd6 {[%clk 0:00:14.2]} 38. Nd7 {[%clk 0:00:43.4]} 38... Rxc3 {[%clk
0:00:09.4]} 39. Ne5 {[%clk 0:00:42.5]} 39... Rc2+ {[%clk 0:00:08]} 40. Kf1
{[%clk 0:00:40.9]} 40... Rc3 {[%clk 0:00:08.9]} 41. Rd7 {[%clk 0:00:39.4]} 41...
Nf5 {[%clk 0:00:08.1]} 42. Nxf7 {[%clk 0:00:28.3]} 42... Kf8 {[%clk 0:00:06]}
43. Ne5 {[%clk 0:00:26.4]} 43... Nxd4 {[%clk 0:00:06]} 44. Nxg6+ {[%clk
0:00:24.5]} 44... Ke8 {[%clk 0:00:06.7]} 45. Rh7 {[%clk 0:00:23.8]} 45... Kd8
{[%clk 0:00:07.6]} 46. Rxh5 {[%clk 0:00:22.1]} 46... Nf5 {[%clk 0:00:08.5]} 47.
Rh8+ {[%clk 0:00:20.6]} 47... Kd7 {[%clk 0:00:08.8]} 48. Ne5+ {[%clk 0:00:20.6]}
48... Kd6 {[%clk 0:00:09.3]} 49. g6 {[%clk 0:00:20.5]} 49... Rg3 {[%clk
0:00:08.5]} 50. h4 {[%clk 0:00:20.4]} 50... d4 {[%clk 0:00:07.2]} 51. h5 {[%clk
0:00:20.3]} 51... Kd5 {[%clk 0:00:07.2]} 52. h6 {[%clk 0:00:18.5]} 52... Ke4
{[%clk 0:00:07.6]} 53. g7 {[%clk 0:00:16.4]} 53... Nxg7 {[%clk 0:00:07.7]} 54.
Rg8 {[%clk 0:00:14.6]} 54... Rh3 {[%clk 0:00:06.3]} 55. hxg7 {[%clk 0:00:14.1]}
55... Rg3 {[%clk 0:00:03.7]} 56. Nd7 {[%clk 0:00:13.6]} 56... d3 {[%clk
0:00:03.7]} 57. Nf6+ {[%clk 0:00:13.2]} 57... Kf3 {[%clk 0:00:04.1]} 58. Ke1
{[%clk 0:00:10.9]} 58... Rg2 {[%clk 0:00:02.3]} 59. Kd1 {[%clk 0:00:07.5]} 59...
Ke3 {[%clk 0:00:02.6]} 60. Kc1 {[%clk 0:00:05.5]} 60... Rg1+ {[%clk 0:00:03.5]}
61. Kb2 {[%clk 0:00:05.6]} 61... d2 {[%clk 0:00:04.4]} 62. Rd8 {[%clk
0:00:04.3]} 62... Rxg7 {[%clk 0:00:04.4]} 63. Rd6 {[%clk 0:00:03.5]} 63... Rb7+
{[%clk 0:00:04.7]} 64. Kc2 {[%clk 0:00:02.9]} 64... Rc7+ {[%clk 0:00:05.6]} 65.
Kb3 {[%clk 0:00:03.2]} 65... Rc1 {[%clk 0:00:06]} 66. Ka4 {[%clk 0:00:04.1]}
66... d1=Q+ {[%clk 0:00:06.1]} 67. Kb5 {[%clk 0:00:04.8]} 67... Qxd6 {[%clk
0:00:05.9]} 68. Ka4 {[%clk 0:00:03.8]} 68... Qc6+ {[%clk 0:00:06.2]} 69. Kb3
{[%clk 0:00:03.8]} 69... Qc5 {[%clk 0:00:07.1]} 70. Kb2 {[%clk 0:00:04]} 70...
Rc3 {[%clk 0:00:07.3]} 0-1